fUST/lending_fUST_20250418
["ID","MTS","AMOUNT","RATE_DAILY","PERIOD"]
[358349696,1744971048724,-500.0,0.00021917,2]
[358349697,1744971048734,-569.59,0.00021917,2]
[358349698,1744971048744,-934.48,0.00021917,2]
[358349699,1744971048754,-892.53,0.00021917,2]
[358349700,1744971048764,-500.0,0.00021917,2]
[358349701,1744971048774,-575.92,0.00021917,2]
[358349702,1744971048784,-954.41,0.00021917,2]
[358349703,1744971048794,-1423.43,0.00021917,2]
[358349704,1744971048803,-500.0,0.00021917,2]
[358349705,1744971048813,-974.84,0.00021917,2]
[358349706,1744971048823,-500.0,0.00021917,2]
[358349707,1744971048832,-1055.21,0.00021917,2]
[358349708,1744971048842,-523.94,0.00021917,2]
[358349709,1744971048852,-500.0,0.00021917,2]
[358349710,1744971048862,-931.0,0.00021917,2]
[358349711,1744971048872,-500.0,0.00021917,2]
[358349712,1744971048882,-500.0,0.00021917,2]
[358349713,1744971048892,-500.0,0.00021917,2]
[358349714,1744971048902,-500.0,0.00021917,2]
[358349715,1744971048911,-500.0,0.00021917,2]
[358349716,1744971048922,-500.0,0.00021917,2]
[358349717,1744971048932,-500.0,0.00021917,2]
[358349718,1744971048943,-652.05,0.00021917,2]
[358349719,1744971048954,-500.0,0.00021917,2]
[358349720,1744971048965,-500.0,0.00021917,2]
[358349721,1744971048975,-500.0,0.00021917,2]
[358349722,1744971048986,-1448.66,0.00021917,2]
[358349723,1744971048996,-681.41,0.00021917,2]
[358349724,1744971049006,-500.0,0.00021917,2]
[358349725,1744971049016,-500.0,0.00021917,2]
[358349726,1744971049026,-500.0,0.00021917,2]
[358349727,1744971049036,-500.0,0.00021917,2]
[358349728,1744971049046,-500.0,0.00021917,2]
[358349729,1744971049055,-738.28,0.00021917,2]
[358349730,1744971049063,-1055.03,0.00021917,2]
[358349731,1744971049073,-500.0,0.00021917,2]
[358349732,1744971049083,-783.76,0.00021917,2]
[358349733,1744971049093,-931.52,0.00021917,2]
[358349734,1744971049102,-500.0,0.00021917,2]
[358349735,1744971049111,-500.0,0.00021917,2]
[358349736,1744971049120,-500.0,0.00021917,2]
[358349737,1744971049129,-500.0,0.00021917,2]
[358349738,1744971049139,-500.0,0.00021917,2]
[358349739,1744971049148,-500.0,0.00021917,2]
[358349740,1744971049157,-500.0,0.00021917,2]
[358349741,1744971049166,-1331.35,0.00021917,2]
[358349742,1744971049176,-906.66,0.00021917,2]
[358349743,1744971049185,-500.0,0.00021917,2]
[358349744,1744971049196,-828.05,0.00021917,2]
[358349745,1744971049206,-739.62,0.00021917,2]
[358349746,1744971049217,-2663.24,0.00021917,2]
[358349747,1744971049227,-1226.79,0.00021917,2]
[358349748,1744971049237,-500.0,0.00021917,2]
[358349749,1744971049246,-500.0,0.00021917,2]
[358349750,1744971049256,-500.0,0.00021917,2]
[358349751,1744971049266,-500.0,0.00021917,2]
[358349752,1744971049275,-500.0,0.00021917,2]
[358349753,1744971049285,-500.0,0.00021917,2]
[358349754,1744971049295,-1585.2,0.00021917,2]
[358349755,1744971049305,-500.0,0.00021917,2]
[358349756,1744971049315,-500.0,0.00021917,2]
[358349757,1744971049325,-500.0,0.00021917,2]
[358349758,1744971049335,-500.0,0.00021917,2]
[358349759,1744971049345,-500.0,0.00021917,2]
[358349760,1744971049355,-506.06,0.00021917,2]
[358349761,1744971049365,-700.51,0.00021917,2]
[358349762,1744971049375,-1435.93,0.00021917,2]
[358349763,1744971049384,-527.98,0.00021917,2]
[358349764,1744971049394,-11184.72,0.00021917,2]
[358349765,1744971049404,-500.0,0.00021917,2]
[358349766,1744971049414,-563.32,0.00021917,2]
[358349767,1744971049424,-345.64565817,0.00021917,2]
[358349768,1744971049433,-500.0,0.00021917,2]
[358349769,1744971049443,-1917.47,0.00021917,2]
[358349770,1744971049454,-500.0,0.00021917,2]
[358349771,1744971049464,-500.0,0.00021917,2]
[358349772,1744971049475,-501.52,0.00021917,2]
[358349773,1744971049484,-1973.63,0.00021917,2]
[358349774,1744971049494,-500.0,0.00021917,2]
[358349775,1744971049504,-2893.74,0.00021917,2]
[358349776,1744971049515,-1831.35,0.00021917,2]
[358349777,1744971049525,-500.0,0.00021917,2]
[358349778,1744971049535,-500.0,0.00021917,2]
[358349779,1744971049545,-500.0,0.00021917,2]
[358349780,1744971049555,-500.0,0.00021917,2]
[358349781,1744971049564,-525.93,0.00021917,2]
[358349782,1744971049575,-500.0,0.00021917,2]
[358349783,1744971049584,-833.5,0.00021917,2]
[358349784,1744971049595,-500.0,0.00021917,2]
[358349785,1744971049604,-500.0,0.00021917,2]
[358349786,1744971049614,-655.74,0.00021917,2]
[358349787,1744971049628,-285.27999408,0.00021917,2]
[358349788,1744971049637,-500.0,0.00021917,2]
[358349789,1744971049647,-683.96,0.00021917,2]
[358349790,1744971049656,-1037.06,0.00021917,2]
[358349791,1744971049667,-500.0,0.00021917,2]
[358349792,1744971049676,-264.4999659,0.00021917,2]
[358349793,1744971049686,-379.7037856,0.00021917,2]
[358349794,1744971049696,-500.0,0.00021917,2]
[358349795,1744971049706,-1354.38,0.00021917,2]
[358349796,1744971049716,-500.0,0.00021917,2]
[358349797,1744971049726,-3833.76,0.00021917,2]
[358349798,1744971049735,-736.96,0.00021917,2]
[358349799,1744971049745,-8646.55,0.00021917,2]
[358349800,1744971049755,-500.0,0.00021917,2]
[358349801,1744971049764,-500.0,0.00021917,2]
[358349802,1744971049774,-804.63,0.00021917,2]
[358349803,1744971049783,-500.0,0.00021917,2]
[358349804,1744971049792,-500.0,0.00021917,2]
[358349805,1744971049800,-500.0,0.00021917,2]
[358349806,1744971049809,-593.31,0.00021917,2]
[358349807,1744971049819,-660.3,0.00021917,2]
[358349808,1744971049829,-500.0,0.00021917,2]
[358349809,1744971049838,-500.0,0.00021917,2]
[358349810,1744971049847,-500.0,0.00021917,2]
[358349811,1744971049857,-1124.44,0.00021917,2]
[358349812,1744971049867,-981.03,0.00021917,2]
[358349813,1744971049878,-500.0,0.00021917,2]
[358349814,1744971049886,-500.0,0.00021917,2]
[358349815,1744971049894,-500.0,0.00021917,2]
[358349816,1744971049901,-1205.86,0.00021917,2]
[358349817,1744971049908,-500.0,0.00021917,2]
[358349818,1744971049916,-500.0,0.00021917,2]
[358349819,1744971049924,-1237.59,0.00021917,2]
[358349820,1744971049932,-500.0,0.00021917,2]
[358349821,1744971049944,-500.0,0.00021917,2]
[358349822,1744971049953,-543.11,0.00021917,2]
[358349823,1744971049963,-500.0,0.00021917,2]
[358349824,1744971049972,-569.51,0.00021917,2]
[358349825,1744971049981,-528.27,0.00021917,2]
[358349826,1744971049990,-2810.33,0.00021917,2]
[358349827,1744971050000,-1022.1,0.00021917,2]
[358349828,1744971050009,-500.0,0.00021917,2]
[358349829,1744971050019,-500.0,0.00021917,2]
[358349830,1744971050028,-500.0,0.00021917,2]
[358349831,1744971050038,-7473.2,0.00021917,2]
[358349832,1744971050047,-659.25,0.00021917,2]
[358349833,1744971050056,-208.84989201,0.00021917,2]
[358349834,1744971050066,-715.19,0.00021917,2]
[358349835,1744971050076,-510.93,0.00021917,2]
[358349836,1744971050085,-500.0,0.00021917,2]
[358349837,1744971050096,-1005.62,0.00021917,2]
[358349838,1744971050106,-500.0,0.00021917,2]
[358349839,1744971050115,-640.37,0.00021917,2]
[358349840,1744971050126,-2410.66,0.00021917,2]
[358349841,1744971050137,-500.0,0.00021917,2]
[358349842,1744971050146,-500.0,0.00021917,2]
[358349843,1744971050156,-500.0,0.00021917,2]
[358349844,1744971050166,-500.0,0.00021917,2]
[358349845,1744971050175,-1109.28,0.00021917,2]
[358349846,1744971050185,-500.0,0.00021917,2]
[358349847,1744971050198,-500.0,0.00021917,2]
[358349848,1744971050207,-500.0,0.00021917,2]
[358349849,1744971050217,-500.0,0.00021917,2]
[358349850,1744971050227,-500.0,0.00021917,2]
[358349851,1744971050237,-504.87985386,0.00021917,2]
[358349852,1744971050246,-500.0,0.00021917,2]
[358349853,1744971050256,-26594.52,0.00021917,2]
[358349854,1744971050266,-6791.46,0.00021917,2]
[358349855,1744971050275,-500.0,0.00021917,2]
[358349856,1744971050285,-500.0,0.00021917,2]
[358349857,1744971050295,-500.0,0.00021917,2]
[358349858,1744971050305,-500.0,0.00021917,2]
[358349859,1744971050315,-500.0,0.00021917,2]
[358349860,1744971050324,-500.0,0.00021917,2]
[358349861,1744971050334,-500.0,0.00021917,2]
[358349862,1744971050344,-681.31,0.00021917,2]
[358349863,1744971050354,-902.8,0.00021917,2]
[358349864,1744971050363,-753.36,0.00021917,2]
[358349865,1744971050372,-500.0,0.00021917,2]
[358349866,1744971050383,-1193.26,0.00021917,2]
[358349867,1744971050392,-754.66,0.00021917,2]
[358349868,1744971050402,-443.56467351,0.00021917,2]
[358349869,1744971050421,-260.71532649,0.00021917,2]
[358349870,1744971050431,-55.58467353,0.00021917,2]
[358349871,1744971059947,370000.0,0.00017979,2]
[358349902,1744972078492,1340.29025413,0.00016,2]
[358349903,1744972099970,3094.82203447,0.000125,2]
[358349918,1744972231793,-173.32808745,0.000189,2]
[358349919,1744972231802,-163.30004836,0.00019759,2]
[358349920,1744972231811,-707.0,0.00019859,2]
[358349921,1744972231820,-544.0,0.00019859,2]
[358349922,1744972231830,-402.0,0.00019859,2]
[358349923,1744972231840,-160.0,0.00020579,2]
[358349924,1744972231849,-280.08754382,0.000208,2]
[358349925,1744972231860,-31.10245618,0.000208,2]
[358349926,1744972231870,-286.67754383,0.00020912,2]
[358349927,1744972231881,-422.80669939,0.00020912,2]
[358349979,1744972437461,10000.0,0.00025,120]
[358349980,1744972481419,10000.0,0.00025,120]
[358349981,1744972489107,10000.0,0.00025,120]
[358349982,1744972496501,10000.0,0.00025,120]
[358349983,1744972503021,10000.0,0.00025,120]
[358349984,1744972509000,10000.0,0.00025,120]
[358349985,1744972515129,10000.0,0.00025,120]
[358349986,1744972521208,10000.0,0.00025,120]
[358349987,1744972526879,10000.0,0.00025,120]
[358349988,1744972532620,10000.0,0.00025,120]
[358349989,1744972538552,10000.0,0.00025,120]
[358349990,1744972544248,10000.0,0.00025,120]
[358349991,1744972550993,10000.0,0.00025,120]
[358349992,1744972556561,10000.0,0.00025,120]
[358349993,1744972562361,10000.0,0.00025,120]
[358349994,1744972567769,10000.0,0.00025,120]
[358349995,1744972573954,10000.0,0.00025,120]
[358349996,1744972579340,10000.0,0.00025,120]
[358349997,1744972584784,10000.0,0.00025,120]
[358349998,1744972590137,5739.73370133,0.00025,120]
[358349999,1744972595679,10000.0,0.00022,120]
[358350000,1744972602021,10000.0,0.00022,120]
[358350001,1744972607519,10000.0,0.00022,120]
[358350002,1744972612803,10000.0,0.00022,120]
[358350003,1744972618286,10000.0,0.00022,120]
[358350004,1744972623882,10000.0,0.00022,120]
[358350005,1744972629129,10000.0,0.00022,120]
[358350006,1744972639092,1000.0,0.00022,120]
[358350007,1744972666951,3737.0,0.00016,120]
[358350040,1744973252495,1313.99,0.0001801,2]
[358350076,1744973431886,-707.0,0.00020021,2]
[358350078,1744973431895,-544.0,0.00020021,2]
[358350080,1744973431905,-402.0,0.00020021,2]
[358350082,1744973431915,-151.0,0.00020766,2]
[358350084,1744973431924,-280.07,0.000208,2]
[358350086,1744973431934,-500.0,0.00020912,2]
[358350088,1744973431944,-2990.27732076,0.00021698,2]
[358350090,1744973431953,-300.0,0.00021799,2]
[358350092,1744973431963,-2635.01136516,0.000218,2]
[358350093,1744973431973,-160.0,0.00021825,2]
[358350094,1744973431983,-160.0,0.00021825,2]
[358350096,1744973431993,-420.40766787,0.00021825,2]
[358350097,1744973432002,-160.0,0.00021825,2]
[358350098,1744973432012,-340.57485355,0.00021825,2]
[358350101,1744973432045,-159.42514645,0.00021825,2]
[358350103,1744973432056,-263.77235355,0.00021825,2]
[358350134,1744973438054,-906.931388,0.00020596,2]
[358350137,1744973438064,-236.22764645,0.00021825,2]
[358350139,1744973438074,-500.0,0.00021825,2]
[358350141,1744973438083,-500.0,0.00021825,2]
[358350143,1744973438093,-569.81916835,0.00021825,2]
[358350145,1744973438102,-500.0,0.00021825,2]
[358350148,1744973438112,-500.0,0.00021825,2]
[358350150,1744973438121,-647.88362734,0.00021825,2]
[358350152,1744973438130,-160.0,0.00021826,2]
[358350154,1744973438139,-2513.8171221,0.00021826,2]
[358350201,1744973440163,-103.56896767,0.00021826,2]
[358350532,1744974632084,-218.878,0.00020112,2]
[358350535,1744974632094,-251.392,0.00020112,2]
[358350537,1744974632104,-402.0,0.00020112,2]
[358350539,1744974632113,-764.473905,0.00020776,2]
[358350541,1744974632123,-170.2011011,0.00020825,2]
[358350543,1744974632132,-252.06,0.000209,2]
[358350545,1744974632141,-300.0,0.00021772,2]
[358350546,1744974632151,-300.0,0.00021772,2]
[358350547,1744974632160,-500.0,0.00021773,2]
[358350548,1744974632170,-500.0,0.00021773,2]
[358350550,1744974632180,-300.0,0.00021773,2]
[358350551,1744974632190,-500.0,0.00021773,2]
[358350552,1744974632199,-500.0,0.00021773,2]
[358350553,1744974632209,-500.0,0.00021773,2]
[358350554,1744974632219,-294.20929193,0.00021777,2]
[358350556,1744974632228,-12559.7366029,0.00021778,2]
[358350557,1744974632240,-839.29847495,0.00021778,2]
[358350558,1744974632250,-160.0,0.0002178,2]
[358350559,1744974632259,-160.0,0.0002178,2]
[358350560,1744974632269,-420.40766787,0.0002178,2]
[358350561,1744974632279,-160.0,0.0002178,2]
[358350562,1744974632289,-160.0,0.0002178,2]
[358350563,1744974632299,-17550.5756191,0.0002178,2]
[358350701,1744974646318,-385.22300047,0.0002178,2]
[358350702,1744974646330,-275.16655845,0.0002178,2]
[358350703,1744974646378,-642.0,0.0002178,2]
[358350843,1744975677172,201.14950577,0.00016,2]
[358350846,1744975712716,278.98083398,0.0001,2]
[358350854,1744975719587,621.66076793,9e-05,2]
[358350855,1744975723426,572.78931172,0.000149,2]
[358350856,1744975723553,1000.0,0.0001,2]
[358351126,1744975832360,-165.5520583,0.000189,2]
[358351128,1744975832373,-250.0,0.00019588,2]
[358351129,1744975832384,-300.96,0.00020393,2]
[358351130,1744975832394,-740.5920688,0.00020464,2]
[358351132,1744975832403,-411.8347134,0.00020608,2]
[358351133,1744975832412,-160.0,0.00020893,2]
[358351134,1744975832422,-226.86,0.000209,2]
[358351135,1744975832432,-317.4189324,0.00020978,2]
[358351137,1744975832442,-158.6856047,0.00020978,2]
[358351138,1744975832451,-500.0,0.00021086,2]
[358351139,1744975832460,-2200.0,0.00021351,2]
[358351140,1744975832469,-165.4889066,0.000216,2]
[358351142,1744975832479,-300.0,0.00021672,2]
[358351143,1744975832488,-300.0,0.00021672,2]
[358351144,1744975832496,-3229.97420686,0.00021672,2]
[358351145,1744975832505,-500.0,0.00021673,2]
[358351147,1744975832514,-500.0,0.00021673,2]
[358351148,1744975832522,-500.0,0.00021673,2]
[358351149,1744975832531,-500.0,0.00021673,2]
[358351151,1744975832541,-500.0,0.00021673,2]
[358351152,1744975832551,-300.0,0.00021673,2]
[358351153,1744975832561,-500.0,0.00021673,2]
[358351155,1744975832571,-414.8,0.00021687,2]
[358351156,1744975832580,-151.0,0.00021687,2]
[358351157,1744975832589,-152.0,0.00021694,2]
[358351158,1744975832599,-470.08196392,0.00021699,2]
[358351160,1744975832608,-158.456,0.00021699,2]
[358351161,1744975832617,-171.711,0.00021699,2]
[358351162,1744975832626,-30854.66264624,0.00021699,2]
[358351164,1744975832635,-961.11868122,0.00021699,3]
[358351165,1744975832644,-66520.69503225,0.000217,2]
[358351167,1744975832656,-6774.17902079,0.000217,2]
[358351262,1744975838408,-221.96,0.00021086,2]
[358351264,1744975838418,-1392.87479386,0.000217,2]
[358351280,1744975838570,-2016.07685197,0.000217,2]
[358351283,1744975838582,-416.351307,0.000217,2]
[358351285,1744975838594,-2014.40851161,0.000217,2]
[358351287,1744975838606,-500.0,0.000217,2]
[358351289,1744975838617,-683.4702858,0.000217,2]
[358351292,1744975838631,-152637.44783654,0.000217,2]
[358351294,1744975838642,-1806.41131233,0.000217,2]
[358351338,1744975840790,-1215.47812151,0.000217,2]
[358351340,1744975840803,-994.5,0.000217,2]
[358351343,1744975840816,-9598.5326794,0.000217,2]
[358351457,1744975846351,-402.0,0.00020643,2]
[358351458,1744975846362,-36562.22312609,0.000217,2]
[358351493,1744977032346,-402.0,0.00020643,2]
[358351495,1744977032356,-5728.4711653,0.00020699,2]
[358351497,1744977032365,-204.17,0.000209,2]
[358351499,1744977032375,-300.0,0.00021498,2]
[358351500,1744977032384,-5161.4669509,0.00021499,2]
[358351502,1744977032394,-300.0,0.00021499,2]
[358351504,1744977032404,-200.50236454,0.000215,2]
[358351506,1744977032413,-179.05811064,0.000215,2]
[358351508,1744977032422,-179.05811063,0.00021503,2]
[358351509,1744977032432,-174.49131818,0.00021563,2]
[358351511,1744977032441,-323.73933657,0.00021573,2]
[358351514,1744977032457,-176.26066343,0.00021573,2]
[358351515,1744977032467,-500.0,0.00021573,2]
[358351517,1744977032477,-500.0,0.00021573,2]
[358351519,1744977032486,-500.0,0.00021573,2]
[358351521,1744977032495,-300.0,0.00021573,2]
[358351523,1744977032504,-500.0,0.00021573,2]
[358351524,1744977032514,-282.27271936,0.00021587,2]
[358351526,1744977032523,-413.22314737,0.00021596,2]
[358351528,1744977032532,-329.05737474,0.00021596,2]
[358351530,1744977032542,-2419.30194037,0.00021597,2]
[358351532,1744977032554,-431.68,0.00021597,2]
[358351534,1744977032565,-12291.94592153,0.00021597,2]
[358351539,1744977032580,-38758.5294029,0.00021597,2]
[358351603,1744977038678,-19607.87225135,0.00021597,2]
[358351722,1744977040782,-2296.5912083,0.00021597,2]
[358352926,1744978232618,-738.0750157,0.00019487,2]
[358352927,1744978232628,-300.0,0.00019836,2]
[358352928,1744978232637,-300.0,0.00019836,2]
[358352929,1744978232647,-4525.40237286,0.00019837,2]
[358352930,1744978232656,-500.0,0.00019837,2]
[358352931,1744978232666,-500.0,0.00019837,2]
[358352932,1744978232675,-500.0,0.00019837,2]
[358352933,1744978232685,-499.97300001,0.00019837,2]
[358352934,1744978232695,-500.0,0.00019837,2]
[358352935,1744978232704,-500.0,0.00019837,2]
[358352936,1744978232714,-500.0,0.00019837,2]
[358352937,1744978232724,-500.0,0.00019837,2]
[358352938,1744978232734,-500.0,0.00019837,2]
[358352939,1744978232743,-61.68042241,0.00019837,2]
[358352941,1744978232755,-438.31957759,0.00019837,2]
[358352942,1744978232765,-500.0,0.00019837,2]
[358352943,1744978232774,-500.0,0.00019837,2]
[358352944,1744978232784,-500.0,0.00019837,2]
[358352945,1744978232793,-69.41802976,0.00019837,2]
[358352946,1744978232805,-430.58197024,0.00019837,2]
[358352947,1744978232814,-500.0,0.00019837,2]
[358352948,1744978232824,-500.0,0.00019837,2]
[358352949,1744978232833,-500.0,0.00019837,2]
[358352950,1744978232843,-500.0,0.00019837,2]
[358352951,1744978232852,-18468.4500933,0.00019838,2]
[358352952,1744978232861,-7904.8099517,0.00019896,2]
[358352953,1744978232870,-202.801863,0.00020261,2]
[358352954,1744978232880,-152.0,0.00020502,2]
[358352955,1744978232889,-160.0,0.00020585,2]
[358352956,1744978232899,-402.0,0.00020643,2]
[358352957,1744978232909,-711.36084876,0.00020803,2]
[358352958,1744978232919,-183.76,0.000209,2]
[358352959,1744978232928,-2764.75378415,0.000209,3]
[358352960,1744978232938,-1022.15544205,0.0002091,2]
[358352961,1744978232948,-181.0,0.00020963,2]
[358352962,1744978232957,-151.0,0.00020997,2]
[358352963,1744978232967,-156.1821769,0.00021,2]
[358352964,1744978232976,-306.0,0.00021,2]
[358352965,1744978232986,-306.0,0.00021,2]
[358352966,1744978232996,-153.0,0.00021,2]
[358352967,1744978233006,-289.4698327,0.00021,2]
[358352968,1744978233015,-230.34016232,0.00021009,2]
[358352969,1744978233024,-289.25620316,0.00021009,2]
[358352970,1744978233034,-500.49,0.0002101,2]
[358352971,1744978233043,-500.0,0.0002101,2]
[358352972,1744978233053,-500.0,0.0002101,2]
[358352973,1744978233062,-500.0,0.0002101,2]
[358352974,1744978233072,-523.81418619,0.0002101,2]
[358352975,1744978233082,-500.0,0.0002101,2]
[358352976,1744978233091,-500.0,0.0002101,2]
[358352977,1744978233101,-500.0,0.0002101,2]
[358352978,1744978233111,-500.0,0.0002101,2]
[358352979,1744978233124,-800.0,0.0002101,2]
[358352980,1744978233134,-500.0,0.0002101,2]
[358352981,1744978233143,-800.0,0.0002101,2]
[358352982,1744978233153,-500.0,0.0002101,2]
[358352983,1744978233165,-800.0,0.0002101,2]
[358352984,1744978233175,-500.0,0.0002101,2]
[358352985,1744978233184,-800.0,0.0002101,2]
[358352986,1744978233197,-537.43904226,0.0002101,2]
[358352987,1744978233206,-504.94717156,0.0002101,2]
[358352988,1744978233216,-800.0,0.0002101,2]
[358352989,1744978233226,-800.0,0.0002101,2]
[358352990,1744978233235,-800.0,0.0002101,2]
[358352991,1744978233245,-800.0,0.0002101,2]
[358352992,1744978233255,-800.0,0.0002101,2]
[358352993,1744978233264,-800.0,0.0002101,2]
[358352994,1744978233274,-800.0,0.0002101,2]
[358352995,1744978233283,-800.0,0.0002101,2]
[358352996,1744978233293,-800.0,0.0002101,2]
[358352997,1744978233303,-1223.33533459,0.0002101,2]
[358352998,1744978233313,-500.0,0.0002101,2]
[358352999,1744978233323,-500.0,0.0002101,2]
[358353000,1744978233333,-500.0,0.0002101,2]
[358353001,1744978233343,-500.0,0.0002101,2]
[358353002,1744978233353,-500.0,0.0002101,2]
[358353003,1744978233363,-500.0,0.0002101,2]
[358353004,1744978233373,-895.06290008,0.0002101,2]
[358353005,1744978233383,-500.0,0.0002101,2]
[358353006,1744978233392,-500.0,0.0002101,2]
[358353007,1744978233401,-500.0,0.0002101,2]
[358353008,1744978233411,-500.0,0.0002101,2]
[358353009,1744978233421,-500.0,0.0002101,2]
[358353010,1744978233430,-796.35826889,0.0002101,2]
[358353011,1744978233440,-1022.15544202,0.00021051,2]
[358353012,1744978233449,-1022.15544202,0.00021192,2]
[358353013,1744978233459,-153.0,0.000212,2]
[358353014,1744978233468,-299.25474298,0.000212,2]
[358353015,1744978233478,-208.62386263,0.000212,2]
[358353016,1744978233487,-151.0,0.000212,2]
[358353017,1744978233497,-151.0,0.000212,2]
[358353018,1744978233506,-151.0,0.000212,2]
[358353019,1744978233515,-151.0,0.000212,2]
[358353020,1744978233525,-151.0,0.000212,2]
[358353021,1744978233534,-195.0893801,0.000212,2]
[358353022,1744978233544,-151.0,0.000212,2]
[358353023,1744978233554,-151.0,0.000212,2]
[358353024,1744978233563,-151.0,0.000212,2]
[358353025,1744978233573,-153.0,0.000213,2]
[358353026,1744978233583,-184.021407,0.000213,2]
[358353027,1744978233592,-153.0,0.000213,2]
[358353028,1744978233602,-153.0,0.000213,2]
[358353029,1744978233611,-300.09964992,0.000213,2]
[358353030,1744978233620,-300.43639099,0.000213,2]
[358353031,1744978233630,-151.0,0.000213,2]
[358353032,1744978233639,-151.0,0.000213,2]
[358353033,1744978233649,-151.0,0.000213,2]
[358353034,1744978233658,-151.0,0.000213,2]
[358353035,1744978233667,-151.52677021,0.000213,2]
[358353036,1744978233677,-1022.15544202,0.00021333,2]
[358353037,1744978233686,-299.67487023,0.00021337,2]
[358353038,1744978233696,-151.0,0.00021337,2]
[358353039,1744978233705,-151.0,0.00021337,2]
[358353040,1744978233715,-151.0,0.00021337,2]
[358353041,1744978233724,-151.0,0.00021337,2]
[358353042,1744978233734,-151.0,0.00021337,2]
[358353043,1744978233744,-318.5,0.000214,7]
[358353044,1744978233754,-284.107809,0.000214,2]
[358353045,1744978233763,-151.0,0.00021437,2]
[358353046,1744978233772,-151.0,0.00021437,2]
[358353047,1744978233782,-300.0,0.00021473,2]
[358353048,1744978233791,-500.0,0.00021473,2]
[358353049,1744978233801,-500.0,0.00021473,2]
[358353050,1744978233810,-500.0,0.00021473,2]
[358353051,1744978233820,-160.52180996,0.00021473,2]
[358353052,1744978233829,-500.0,0.00021473,2]
[358353053,1744978233838,-500.0,0.00021473,2]
[358353054,1744978233848,-500.0,0.00021473,2]
[358353055,1744978233858,-198.0,0.00021474,2]
[358353056,1744978233867,-231.70714042,0.00021474,2]
[358353057,1744978233876,-198.0,0.00021474,2]
[358353058,1744978233886,-151.0,0.00021474,2]
[358353059,1744978233895,-198.0,0.00021474,2]
[358353060,1744978233904,-1022.15544202,0.00021474,2]
[358353061,1744978233914,-21664.58263348,0.00021499,2]
[358353062,1744978233924,-1870.16555179,0.00021499,3]
[358353063,1744978233933,-151.0,0.00021499,2]
[358353064,1744978233943,-197.705529,0.00021499,2]
[358353065,1744978233952,-197.705529,0.00021499,2]
[358353066,1744978233962,-197.705529,0.00021499,2]
[358353067,1744978233971,-197.705529,0.00021499,2]
[358353068,1744978233980,-721.750789,0.00021499,2]
[358353069,1744978233990,-721.750789,0.00021499,2]
[358353070,1744978234000,-721.750789,0.00021499,2]
[358353071,1744978234010,-721.750789,0.00021499,2]
[358353072,1744978234020,-151.0,0.00021499,2]
[358353073,1744978234029,-151.0,0.00021499,2]
[358353074,1744978234039,-151.0,0.00021499,2]
[358353075,1744978234048,-151.0,0.00021499,2]
[358353076,1744978234058,-151.0,0.00021499,2]
[358353077,1744978234067,-151.0,0.00021499,2]
[358353078,1744978234077,-59322.47802692,0.00021499,2]